Cogmind - Beta 15 @@@ ROGUE MODE // 2025.09.28 @ 10:58:09 Player: beans Result: Destroyed by Y-64 Sentinel with KE Penetrator Performance ------------- Evolutions (5) 2500 Regions Visited (7) 1400 Robots Destroyed (96) 480 Value Destroyed (2083) 2083 Prototype IDs (11) 220 Alien Tech Used (0) 0 Bonus (634) 634 TOTAL SCORE: 7317 Bonus ------- High Alert Combat Kills 43 Follower Combat Kills 291 Registered with UFD 300 Cogmind --------- Core Integrity 0/1000 Matter 274/300 Energy 99/100 System Corruption 3% Temperature Cool (0) Movement Flying (32) Location -5/Factory Parts ------- > --- POWER (2) -------- (None) > --- PROPULSION (4) --- VTOL Module VTOL Module > --- UTILITY (8) ------ (None) > --- WEAPON (3) ------- Lance > --- INVENTORY (5) ---- Advanced Plasma Cannon Large Botcube Peak State ------------ > --- POWER ------------ Light Angular Momentum Engine > --- PROPULSION ------- Carbon-fiber Leg Carbon-fiber Leg Carbon-fiber Leg Carbon-fiber Leg > --- UTILITY ---------- Cooling System Small Storage Unit Targeting Computer Core Analyzer Cloaking Device System Shield > --- WEAPON ----------- Phase Cannon Remote Datajack > --- INVENTORY -------- Scrap Suit Surveybot 17 Chip Improved Assault Rifle Improved Assault Rifle Large Botcube [Rating: 46] Favorites ----------- Power Improved Ion Engine Engine Improved Ion Engine Power Core Light Neutrino Core Propulsion Aluminum Leg Treads Armored Treads Leg Aluminum Leg Flight Unit VTOL Module Utility Targeting Computer Device Cooling System Storage Small Storage Unit Processor Targeting Computer Hackware System Shield Weapon Improved Assault Rifle Energy Cannon Phase Cannon Ballistic Gun Improved Assault Rifle Launcher Precision Grenade Launcher Special Weapon Remote Datajack Slashing Weapon Greatsword Piercing Weapon Lance Build | -11 -10 -9 -9 -9 -9 -6 -5 ------- Run | Yrd Mat Mat Sto Rec Scr Fac Fac Slots Evolved 10 | . . 2 . . . 6 2 Power 1 | . . . . . . . 1 Propulsion 2 | . . . . . . 2 . Utility 6 | . . 2 . . . 4 . Weapon 1 | . . . . . . . 1 Parts Attached 51 | 6 1 12 7 2 2 14 7 Power 7 | 1 . 1 . . . 3 2 Engine 6 | 1 . 1 . . . 3 1 Core 1 | . . . . . . . 1 Reactor . | . . . . . . . . Propulsion 13 | 2 . 2 2 . . 4 3 Treads 4 | 2 . 2 . . . . . Leg 6 | . . . 2 . . 4 . Wheel . | . . . . . . . . Hover . | . . . . . . . . Flight 3 | . . . . . . . 3 Utility 13 | 1 1 5 1 . 2 3 . Device 5 | . 1 1 1 . 1 1 . Storage 2 | 1 . 1 . . . . . Processor 5 | . . 3 . . 1 1 . Hackware 1 | . . . . . . 1 . Protection . | . . . . . . . . Artifact . | . . . . . . . . Weapon 18 | 2 . 4 4 2 . 4 2 Energy Gun . | . . . . . . . . Energy Cannon 3 | . . . 2 . . 1 . Ballistic Gun 11 | 2 . 4 2 1 . 2 . Ballistic Cannon . | . . . . . . . . Launcher 1 | . . . . . . 1 . Special Weapon 1 | . . . . 1 . . . Impact Weapon . | . . . . . . . . Slashing Weapon 1 | . . . . . . . 1 Piercing Weapon 1 | . . . . . . . 1 Special Melee Weapon . | . . . . . . . . Unidentified Prototypes 3 | . . 1 . . . 1 1 Parts Lost 31 | . . 8 3 2 . 13 5 Power 6 | . . 1 . 1 . 2 2 Propulsion 9 | . . 2 2 . . 4 1 Utility 9 | . . 2 1 1 . 4 1 Weapon 7 | . . 3 . . . 3 1 Highest Loss Streak 6 | . . 4 1 2 . 6 3 To Critical Strikes . | . . . . . . . . Average Backups 5 | 1 . 5 7 7 6 3 1 Power . | . . . . . . . . Propulsion . | . . . . . . . . Utility 1 | . . . 1 1 1 1 . Weapon 3 | . . 4 5 6 5 1 . Tool/Special . | . . . . . . . . Unused Backups 4 | 1 . . . . 1 1 1 Power . | . . . . . . . . Propulsion . | . . . . . . . . Utility 1 | . . . . . . 1 . Weapon 3 | 1 . . . . 1 . 1 Tool/Special . | . . . . . . . . Average Slot Usage (%) 76 | . 96 78 94 84 86 57 15 Engine 3 | . 14 2 11 3 . 2 1 Treads 6 | . 28 12 15 . . . . Leg 10 | . . . 3 22 22 15 . Device 8 | . 10 3 16 15 11 6 . Storage 9 | . 14 12 10 11 11 4 . Processor 16 | . . 25 15 11 20 11 2 Ballistic Gun 15 | . 28 21 18 15 15 4 . Special Weapon 2 | . . . . 6 6 1 . Peak Build Rating 46 | 6 9 20 20 17 21 46 27 Average Rating 17 | 3 8 13 17 14 18 29 16 On Entrance 11 | . 6 9 20 15 14 20 10 Naked Turns 12 | . . . . . . 12 . Heaviest Build 28 | 12 13 19 26 20 13 28 14 Greatest Support 60 | 40 40 40 40 20 20 60 12 Greatest Overweight (x) 6 | . . 4 6 . . 2 4 Average Overweight (x) . | . . 1 . . . . . Largest Inventory Capacity 8 | 8 8 8 8 8 8 8 5 Average Capacity 7 | 6 8 8 7 8 8 7 5 Most Carried 8 | 5 3 8 8 8 8 8 5 Average Carried 6 | 1 . 5 7 7 7 6 3 Final Capacity 8 | 8 8 8 8 8 8 5 5 Final Carried 8 | . 3 8 7 8 7 5 3 Class Distribution -------------------- 53% | Mutant 39% | Commander-Mutant 6% | Scavenger-Mutant Dominant Class ---------------- Mutant | -10/Materials Mutant | -9/Materials Mutant | -9/Storage Commander-Mutant | -9/Recycling Commander-Mutant | -9/Scraptown Commander-Mutant | -6/Factory Mutant | -5/Factory Resources | -11 -10 -9 -9 -9 -9 -6 -5 ----------- Run | Yrd Mat Mat Sto Rec Scr Fac Fac Matter Collected 2393 | 160 212 820 359 211 45 477 109 Remotely . | . . . . . . . . Salvage Created 3710 | . 325 1364 621 180 . 1022 198 Parts 209 | . 17 83 41 8 . 51 9 Haulers Intercepted 10 | . . 6 3 . . 1 . Recyclers Shooed 5 | . 1 . 1 . . 3 . Parts Field Recycled . | . . . . . . . . Retrieved Matter . | . . . . . . . . Parts Self-Destructed . | . . . . . . . . Prevented . | . . . . . . . . Kills | -11 -10 -9 -9 -9 -9 -6 -5 ------- Run | Yrd Mat Mat Sto Rec Scr Fac Fac Combat Hostiles Destroyed 48 | . 7 16 7 4 . 9 5 Melee 5 | . . . . . . . 5 Guns 41 | . 7 16 7 4 . 7 . Cannons 1 | . . . . . . 1 . Classes Destroyed 14 | . 3 6 . 3 . 2 . Worker 18 | . 4 2 4 . . 8 . Builder 9 | . . 2 2 . . 5 . Hauler 10 | . . 6 3 . . 1 . Recycler 7 | . . 4 1 . . 2 . Watcher 4 | . . 3 1 . . . . Swarmer 14 | . 3 3 3 . . 1 4 Saboteur 1 | . . . . . . 1 . Grunt 18 | . 4 8 2 . . 4 . Duelist 1 | . . 1 . . . . . Protector 1 | . . . . 1 . . . Sentry 8 | . . 4 2 1 . . 1 Demolisher 1 | . . . . 1 . . . Hunter 1 | . . . . . . 1 . Programmer 3 | . . . . 1 . 2 . Best Kill Streak 8 | . 8 8 7 2 . 7 4 Combat Bots Only 5 | . 5 5 2 2 . 5 4 Max Kills in Single Turn 3 | . 1 1 2 1 . 3 1 Gunslinging . | . . . . . . . . Exploded . | . . . . . . . . Melee 1 | . . . . . . . 1 Uniques/NPCs Destroyed . | . . . . . . . . Combat | -11 -10 -9 -9 -9 -9 -6 -5 -------- Run | Yrd Mat Mat Sto Rec Scr Fac Fac Hostile Shots Fired 549 | . 47 120 80 9 . 184 109 Missed 163 | . 12 32 27 2 . 63 27 Hits 386 | . 35 88 53 7 . 121 82 Melee 9 | . . 6 . . . 3 . Projectile 377 | . 35 82 53 7 . 118 82 AOE 4 | . . . . 4 . . . Critical Strikes 13 | . . 3 4 . . 4 2 Damage Taken 5510 | . 368 1082 620 211 . 1838 1391 Core 2231 | . . 236 132 15 . 828 1020 Absorbed by Shields 400 | . . . . . . 400 . Regen/Repaired (Parts) 122 | . . . 122 . . . . Core Remaining (%) 51 | 100 100 . . . 4 2 . Volleys Fired 273 | . 30 78 43 35 . 87 . Largest 2 | . 2 2 2 2 . 2 . Hottest 120 | . 40 46 120 46 . 85 . Shots Fired 461 | . 60 149 85 43 . 124 . Gun 387 | . 60 149 73 16 . 89 . Cannon 36 | . . . 12 . . 24 . Launcher . | . . . . . . . . Special 38 | . . . . 27 . 11 . Kinetic 387 | . 60 149 73 16 . 89 . Thermal 36 | . . . 12 . . 24 . Explosive . | . . . . . . . . Electromagnetic . | . . . . . . . . Robot Hit Streak 16 | . 8 12 10 7 . 16 . Robot Miss Streak 3 | . 2 3 3 2 . 3 . Penetration Max 2 | . . . . . . 2 . Secondary Targets 6 | . 1 2 2 . . 1 . Max Gunslinging Chain 1 | . 1 1 1 . . 1 . Shots Hit Robots 333 | . 41 104 54 33 . 88 13 Core Hits 139 | . 16 43 23 6 . 44 7 Critical Kills 3 | . 1 1 . . . 1 . Critical Parts Destroyed 6 | . 2 2 . . . 2 . Critical Strikes 9 | . 3 3 . . . 3 . Meltdown 1 | . . . . . . 1 . Destroy 8 | . 3 3 . . . 2 . Melee Attacks 23 | . . . . . . . 23 Impact . | . . . . . . . . Slashing 6 | . . . . . . . 6 Piercing 17 | . . . . . . . 17 Sneak Attacks . | . . . . . . . . Combat Hostiles . | . . . . . . . . Follow-up Attacks . | . . . . . . . . Damage Inflicted 5814 | . 553 1523 948 176 . 2083 531 Guns 4470 | . 553 1523 787 176 . 1431 . Cannons 769 | . . . 161 . . 608 . Explosions . | . . . . . . . . Melee 529 | . . . . . . . 529 Ramming 46 | . . . . . . 44 2 Kinetic 4470 | . 553 1523 787 176 . 1431 . Thermal 769 | . . . 161 . . 608 . Explosive . | . . . . . . . . Electromagnetic . | . . . . . . . . Impact . | . . . . . . . . Slashing 150 | . . . . . . . 150 Piercing 379 | . . . . . . . 379 Highest Corruption 3 | . . . . . . 3 3 Average Corruption 1 | . . . . . . 1 3 Corruption Purged . | . . . . . . . . Corruption Blocked . | . . . . . . . . Effects 9 | . . . . . . 6 3 Message Errors 4 | . . . . . . 2 2 Matter Fused 1 | . . . . . . . 1 Heat Flow Errors 1 | . . . . . . 1 . Data Loss (minor) 1 | . . . . . . 1 . Weapon Failures 2 | . . . . . . 2 . Overload Shots . | . . . . . . . . Overflow Damage 29 | . . . . . . 1 28 Projectiles 1 | . . . . . . 1 . Explosions . | . . . . . . . . Melee 28 | . . . . . . . 28 Knockbacks . | . . . . . . . . Impact . | . . . . . . . . Kinetic . | . . . . . . . . Secondary . | . . . . . . . . Self-Inflicted Damage 21 | . . . . . . 20 1 Shots . | . . . . . . . . Rammed 8 | . . . . . . 7 1 Targets Rammed 8 | . . . . . . 7 1 Kicked . | . . . . . . . . Crushed . | . . . . . . . . Highest Temperature 192 | . 3 5 24 . . 192 . Average Temperature 29 | . 1 5 14 . . 85 . Received Heat Transfer 1160 | . 147 411 285 9 . 245 63 Siege Activations . | . . . . . . . . Martial Activations . | . . . . . . . . Shielding Activations . | . . . . . . . . Robots Disrupted . | . . . . . . . . Combat Hostiles . | . . . . . . . . Robots Corrupted . | . . . . . . . . Combat Hostiles . | . . . . . . . . Parts Fried . | . . . . . . . . Impact Corruptions . | . . . . . . . . Robots Melted 1 | . . . . . . 1 . Combat Hostiles 1 | . . . . . . 1 . Parts Melted 5 | . . . . . . 4 1 Heat Transferred 999 | . . . 259 . . 740 . Parts Sabotaged . | . . . . . . . . Parts Stolen . | . . . . . . . . Parts Stripped . | . . . . . . . . Power Chain Reactions . | . . . . . . . . Alert | -11 -10 -9 -9 -9 -9 -6 -5 ------- Run | Yrd Mat Mat Sto Rec Scr Fac Fac Maximum Alert Level 2 | . . . . . . 2 1 Low Security (%) 80 | 100 100 100 100 100 . 39 33 Level 1 14 | . . . . . . 41 66 Level 2 4 | . . . . . . 19 . Level 3 . | . . . . . . . . Level 4 . | . . . . . . . . Level 5 . | . . . . . . . . High Security . | . . . . . . . . Max Security . | . . . . . . . . Peak Influence 511 | . 107 178 133 34 . 511 249 Initial 249 | . . 32 67 34 . . 249 Average 94 | . 40 31 80 7 . 225 211 Influence Increases 2292 | . 192 522 299 71 . 1086 122 Destroy 0b10 Robot/C 1100 | . 140 320 140 60 . 340 100 Destroy 0b10 Robot/NC 245 | . 20 85 55 5 . 80 . Destroy Leader 278 | . 30 98 48 . . 82 20 Allied During Kill 84 | . . . . . . 84 . Successful Hack 29 | . . . 24 5 . . . Disable Machine 75 | . . 15 30 . . 30 . Anti-Garrison Action 150 | . . . . . . 150 . Destroy Structure 16 | . 2 4 2 1 . 5 2 Lose Combat Pursuer 315 | . . . . . . 315 . Influence Decreases 2111 | . 115 439 369 161 . 575 452 Entered New Map 456 | . . 45 93 56 . . 262 Time Decay 1220 | . 115 323 246 81 . 315 140 Lost Part 291 | . . 71 30 10 . 130 50 Lost Ally 144 | . . . . 14 . 130 . Squads Dispatched 13 | . 1 2 2 . . 7 1 Investigation 3 | . . 1 . . . 2 . Extermination 1 | . . . . . . 1 . Reinforcement 5 | . 1 1 1 . . 1 1 Assault 2 | . . . . . . 2 . Garrison 2 | . . . 1 . . 1 . Intercept . | . . . . . . . . Searches Triggered . | . . . . . . . . Construction Impeded . | . . . . . . . . Haulers Reinforced . | . . . . . . . . Active Scanning Responses . | . . . . . . . . Cargo Convoy Interrupts . | . . . . . . . . Stealth | -11 -10 -9 -9 -9 -9 -6 -5 --------- Run | Yrd Mat Mat Sto Rec Scr Fac Fac Distress Signals 7 | . 1 2 1 . . 3 . Communications Jammed . | . . . . . . . . Distress Signals . | . . . . . . . . Times Spotted 107 | . 11 25 14 4 . 45 8 Peak Tracking Total 12 | . 5 5 6 2 . 12 4 Tactical Retreats 9 | . . . . . . 9 . Traps | -11 -10 -9 -9 -9 -9 -6 -5 ------- Run | Yrd Mat Mat Sto Rec Scr Fac Fac Traps Triggered 5 | . . . 2 . . 3 . Indirectly . | . . . . . . . . Trap Hack Attempts . | . . . . . . . . Triggered . | . . . . . . . . Disarmed . | . . . . . . . . Reprogrammed . | . . . . . . . . Reused . | . . . . . . . . Traps Extracted . | . . . . . . . . Installed . | . . . . . . . . Triggered . | . . . . . . . . Machines | -11 -10 -9 -9 -9 -9 -6 -5 ---------- Run | Yrd Mat Mat Sto Rec Scr Fac Fac Machines Disabled 7 | . . 2 2 . . 3 . Max in Single Turn 1 | . . 1 1 . . 1 . Garrison Access 1 | . . . . . . 1 . Machines Repaired . | . . . . . . . . Machines Dismantled . | . . . . . . . . Machines Sabotaged . | . . . . . . . . Overloaded Fab Kills . | . . . . . . . . Hacking | -11 -10 -9 -9 -9 -9 -6 -5 --------- Run | Yrd Mat Mat Sto Rec Scr Fac Fac Machines Accessed 11 | . . 2 2 2 3 2 . Terminals 6 | . . 2 1 2 . 1 . Fabricators . | . . . . . . . . Repair Stations 1 | . . . 1 . . . . Recycling Units . | . . . . . . . . Scanalyzers . | . . . . . . . . Garrison Access 1 | . . . . . . 1 . Total Hacks 44 | . . 5 5 2 27 5 . Successful 32 | . . 1 2 2 27 . . Failed 12 | . . 4 3 . . 5 . Catastrophic 2 | . . . . . . 2 . Database Lockouts . | . . . . . . . . Manual 5 | . . 3 2 . . . . Terminals 12 | . . 5 3 2 . 2 . Fabricators . | . . . . . . . . Repair Stations 2 | . . . 2 . . . . Recycling Units . | . . . . . . . . Scanalyzers . | . . . . . . . . Garrison Access 3 | . . . . . . 3 . Terminal Hacks 30 | . . 1 . 2 27 . . Record 27 | . . . . 1 26 . . Robot Schematic 1 | . . . . 1 . . . Transport Status 1 | . . 1 . . . . . Proto ID Catalog 1 | . . . . . 1 . . Fabricator Hacks . | . . . . . . . . Repair Station Hacks 2 | . . . 2 . . . . Scan Component 1 | . . . 1 . . . . Repair 1 | . . . 1 . . . . Recycling Unit Hacks . | . . . . . . . . Scanalyzer . | . . . . . . . . Garrison Access Hacks . | . . . . . . . . Unauthorized Hacks . | . . . . . . . . Terminals . | . . . . . . . . Fabricators . | . . . . . . . . Repair Stations . | . . . . . . . . Recycling Units . | . . . . . . . . Scanalyzers . | . . . . . . . . Garrison Access . | . . . . . . . . Data Cores Recovered . | . . . . . . . . Used . | . . . . . . . . Hacking Detections 5 | . . 1 2 . . 2 . Full Trace Events 3 | . . 1 . . . 2 . Feedback Events . | . . . . . . . . Feedback Blocked . | . . . . . . . . Robot Schematics Acquired 1 | . . . . 1 . . . Robots Built . | . . . . . . . . Authchips . | . . . . . . . . Time . | . . . . . . . . Total Robot Build Rating . | . . . . . . . . Part Schematics Acquired . | . . . . . . . . Parts Built . | . . . . . . . . Authchips . | . . . . . . . . Time . | . . . . . . . . Total Part Build Rating . | . . . . . . . . Parts Repaired 1 | . . . 1 . . . . Time 13 | . . . 13 . . . . Parts Recycled . | . . . . . . . . Recycled Matter . | . . . . . . . . Retrieved Matter . | . . . . . . . . Retrieved Components . | . . . . . . . . Parts Scanalyzed . | . . . . . . . . Part Schematics Acquired . | . . . . . . . . Parts Damaged . | . . . . . . . . Bothacking | -11 -10 -9 -9 -9 -9 -6 -5 ------------ Run | Yrd Mat Mat Sto Rec Scr Fac Fac Used RIF Installer . | . . . . . . . . Robots Hacked 2 | . . . . . . 2 . Non-combat 2 | . . . . . . 2 . Combat . | . . . . . . . . Robot Hacks Applied 2 | . . . . . . 2 . find_chute 2 | . . . . . . 2 . Relay Couplers Released 6 | . . . . . . 6 . Machine Destruction 2 | . . . . . . 2 . Programmers 4 | . . . . . . 4 . Fabnet Peak Effective % . | . . . . . . . . Robots Rewired 13 | . . . . 10 . 3 . Allies Hacked 1 | . . . . . . 1 . Hacks Repelled . | . . . . . . . . Allies | -11 -10 -9 -9 -9 -9 -6 -5 -------- Run | Yrd Mat Mat Sto Rec Scr Fac Fac Total Allies 13 | . . . . 10 . 3 . Largest Group 10 | . . . . 8 8 10 . Highest-Rated Group 237 | . . . . 150 150 237 . Highest-Rated Ally 40 | . . . . 27 27 40 . Total Orders . | . . . . . . . . Ally Attacks 44 | . . . . 1 . 43 . Total Damage 1197 | . . . . 24 . 1173 . Kills 8 | . . . . . . 8 . Allies Corrupted . | . . . . . . . . Allies Melted . | . . . . . . . . Intel | -11 -10 -9 -9 -9 -9 -6 -5 ------- Run | Yrd Mat Mat Sto Rec Scr Fac Fac Active Infowar (turns) 920 | . . 555 208 . . 157 . T.N.C. 763 | . . 555 208 . . . . Cloaking 157 | . . . . . . 157 . Robot Analysis Total . | . . . . . . . . Derelict Logs Recovered . | . . . . . . . . Drone Launches . | . . . . . . . . Drone Recoveries . | . . . . . . . . Exploration | -11 -10 -9 -9 -9 -9 -6 -5 ------------- Run | Yrd Mat Mat Sto Rec Scr Fac Fac Turns Passed 4630 | 50 297 1106 527 445 1139 779 287 Spaces Moved 2748 | 44 127 464 213 262 906 499 233 Core 562 | 29 . 175 13 . . 230 115 Treads 574 | 15 127 289 143 . . . . Legs 1494 | . . . 57 262 906 269 . Wheels . | . . . . . . . . Hover . | . . . . . . . . Flight 118 | . . . . . . . 118 Fastest Speed 29 | 50 160 150 120 120 120 50 29 Average Speed 128 | 87 160 183 167 120 120 98 76 Slowest Speed 350 | 160 160 250 350 120 120 260 250 Overloaded Moves . | . . . . . . . . Propulsion Burnouts . | . . . . . . . . Robots Hopped 1 | . . . . . . . 1 Potential Cave-ins . | . . . . . . . . Cave-ins Triggered . | . . . . . . . . Exploration Rate (%) 30 | 3 29 38 49 42 62 15 9 Regions Visited 7 Branch Regions 3 Pre-discovered Areas 5 | . . . . . 5 . . Known Exits Taken 1 | . . . . . . 1 . Unknown Exits Taken 6 | 1 1 1 1 1 1 . . Scrap Searched 3 | . . . . . 3 . . Spaces Dug 1 | . . . . . . . 1 Terrain Destroyed 4 | . . . . . . 3 1 Melee 1 | . . . . . . . 1 Projectile 2 | . . . . . . 2 . AOE . | . . . . . . . . Terrain Rammed . | . . . . . . . . Walls Destroyed . | . . . . . . . . Machines Disabled . | . . . . . . . . Actions | -11 -10 -9 -9 -9 -9 -6 -5 --------- Run | Yrd Mat Mat Sto Rec Scr Fac Fac Total 3368 | 56 161 571 290 361 960 664 305 Wait 179 | . . 1 14 61 38 38 27 Move 2739 | 43 126 463 212 261 905 498 231 Hop 1 | . . . . . . . 1 Pick Up 44 | 6 4 15 4 1 4 6 4 Fast Attach 23 | 1 . 2 6 . 3 8 3 Attach 33 | 5 1 9 2 . . 7 9 Detach 7 | . . . . . . 2 5 Swap 18 | . . 2 9 3 1 3 . Drop 19 | 1 . 1 . . 9 7 1 Fire 273 | . 30 78 43 35 . 87 . Melee 23 | . . . . . . . 23 Ram 8 | . . . . . . 7 1 Kick . | . . . . . . . . Crush . | . . . . . . . . Escape Stasis . | . . . . . . . . Rewire 1 | . . . . . . 1 . Trap . | . . . . . . . . Miscellaneous . | . . . . . . . . Route ------- -11/Scrapyard -10/Materials -9/Materials (discovered 2 exits: [*Min] / *Sto) -9/Storage -9/Recycling (discovered 2 exits: [*Fac] / *Scr) -9/Scraptown -6/Factory (discovered 5 exits: *Fac x3 / Low x2) -5/Factory History --------- Turn | Location | Event 2 | -11/Scrapyard | Met Revision 17 22 | -11/Scrapyard | Discovered new exit (range 16) 51 | -11/Scrapyard | Entered Materials 296 | -10/Materials | Discovered new exit (range 11) 312 | -10/Materials | Build established: Mutant 348 | -10/Materials | Entered another Materials area 348 | -9/Materials | Evolved 2 slots: Utility x2 568 | -9/Materials | Lost 4 parts (1p2n1w) 689 | -9/Materials | Lost 3 parts (1u2w) 701 | -9/Materials | Discovered new exit (range 14) 1262 | -9/Materials | Discovered new exit (range 11) 1311 | -9/Materials | Core integrity fell below 50% 1454 | -9/Materials | Entered Storage 1486 | -9/Storage | Repaired Sml. Storage Unit 1672 | -9/Storage | Core integrity fell below 20% 1779 | -9/Storage | Garrison activated, responded to threat 1971 | -9/Storage | Used back door to open Recycling access 1971 | -9/Storage | Discovered new exit (range 5) 1981 | -9/Storage | Entered Recycling 2250 | -9/Recycling | Discovered new exit (range 6) 2371 | -9/Recycling | Scanned before Scraplab entrance 2393 | -9/Recycling | Entered Scraplab 2410 | -9/Recycling | Discovered new exit (range 3) 2426 | -9/Recycling | Entered Scraptown 2426 | -9/Scraptown | Accompanied by 8 allies 2496 | -9/Scraptown | Build established: Commander-Mutant 2785 | -9/Scraptown | Visited Cave Peace 2809 | -9/Scraptown | Visited TADAMA 2836 | -9/Scraptown | Visited Awakened 2872 | -9/Scraptown | Visited UFD Registry 2872 | -9/Scraptown | Registered with UFD as "Smoothhacker" 2957 | -9/Scraptown | Visited Scrap Suit Storage 2966 | -9/Scraptown | Found Scrap Suit 3053 | -9/Scraptown | Visited Observation Area 3100 | -9/Scraptown | Visited Research Penetration Think Tank 3118 | -9/Scraptown | Visited Curators Association 3132 | -9/Scraptown | Visited Botcube Research 3140 | -9/Scraptown | Found Lrg. Botcube 3233 | -9/Scraptown | Visited Chapter 10 3272 | -9/Scraptown | Visited Science Guys 3331 | -9/Scraptown | Visited Abandonware Association 3347 | -9/Scraptown | Learned abandonware demo "REVENGE.EXE" 3347 | -9/Scraptown | Learned abandonware demo "POISON.EXE" 3374 | -9/Scraptown | Visited Cartography Club 3398 | -9/Scraptown | Found Surveybot 17 Chip 3475 | -9/Scraptown | Learned location of Storage (-9) 3475 | -9/Scraptown | Learned location of Lower Caves (-7) 3475 | -9/Scraptown | Learned location of Warlord (-4) 3475 | -9/Scraptown | Learned location of Extension (-4) 3475 | -9/Scraptown | Learned location of Cetus (-4) 3475 | -9/Scraptown | Learned 12 Materials zone layouts 3475 | -9/Scraptown | Learned 12 Factory zone layouts 3475 | -9/Scraptown | Learned 16 Factory zone layouts 3475 | -9/Scraptown | Learned 4 Mines zone layouts 3475 | -9/Scraptown | Learned 4 Storage zone layouts 3475 | -9/Scraptown | Learned 4 Recycling zone layouts 3475 | -9/Scraptown | Learned 12 Proximity Caves zone layouts 3475 | -9/Scraptown | Learned 20 Proximity Caves zone layouts 3475 | -9/Scraptown | Learned 4 Armory zone layouts 3475 | -9/Scraptown | Learned Materials emergency access door positions 3475 | -9/Scraptown | Learned location of 1 exit from Lower Caves 3475 | -9/Scraptown | Learned location of 3 exits from Lower Caves 3475 | -9/Scraptown | Learned location of 3 exits from Proximity Caves 3475 | -9/Scraptown | Learned 24 Upper Caves zone layouts 3543 | -9/Scraptown | Discovered new exit (range 3) 3565 | -9/Scraptown | Entered Factory 3565 | -6/Factory | Accompanied by 8 allies 3565 | -6/Factory | Evolved 6 slots: Propulsion x2, Utility x4 3566 | -6/Factory | Identified exit to Lower Caves 3566 | -6/Factory | Identified exit to Factory 3842 | -6/Factory | Garrison activated, responded to threat 4067 | -6/Factory | Lost 4 allies 4234 | -6/Factory | Core integrity fell below 50% 4258 | -6/Factory | Spotted B-75 Beast 4261 | -6/Factory | Lost 6 parts (1p1n2u2w) 4299 | -6/Factory | Core integrity fell below 20% 4311 | -6/Factory | Build established: Mutant 4344 | -6/Factory | Entered another Factory area 4344 | -5/Factory | Evolved 2 slots: Power x1, Weapon x1 4485 | -5/Factory | Core integrity fell below 50% 4508 | -5/Factory | Core integrity fell below 20% 4631 | -5/Factory | Destroyed by Y-64 Sentinel with KE Penetrator Last Messages --------------- O-24 Administrator: "IFF HANDSHAKE FAILED. SECURING TERMINAL." Dropped Lrg. Botcube. Penetrated by Slug. Acquired Adv. Plasma Cannon. Penetrated by Slug. Lgt. Angular Momentum Engine destroyed. Acquired Lrg. Botcube. Destroyed Adv. Heat Sink. ALERT: Hostiles spotted, dispatching reinforcements to Terminal F019. Subcomponent Replicator disabled. Slug penetrates Subcomponent Replicator. Penetrated by Slug. Y-64 Sentinel heat damages Wave Gun. Greatsword destroyed. Penetrated by Slug. Wave Gun melted. Y-64 Sentinel destroyed. Penetrated by Slug. Map ----- +----------------------------------------------------+ | | | | | | | | | | | | | | | | | | | | | | | ?????????????????????????????????????????????????? | | ?????????????????????????????????????????????????? | | ?????????????????????????????????????????????????? | | ?????????????????????????????????????????????????? | | ??????????????????????????????""?????????????????? | | ?????????????????????????????"""?????????????????? | | ???????????????????????????? ""??????????????????? | | ???????????????????????????? "???????????????????? | | ??????????????????????????? ????????????????????? | | ????????????????????????###+###??????????????????? | | ??????????############### +??????????????????? | | ?????????## # #??????????????????? | | ?????????# [ " " # #??????????????????? | | ??????????# """" %Y= +??????????????????? | | ??????????#!!! """"" #@ #??????????????????? | | ??????????#!!! # #??????????????????? | | ??????????#!! # #??????????????????? | | ??????????##########"#### #??????????????????? | | ???????????????????###??# #??????????????????? | | ????????????????????????# #??????????????????? | | ???????????????????###### #??????????????????? | | ####??#######??????# # #??????????????????? | | #??#"""""#??????# # #??????????????????? | | ####""T""######## # #??????????????????? | | # + # ##############?????? | | # #### # # #?????? | | # ^ ^ #??# # #" #?????? | | ! + ^ #??# # #" ??????? | | # #??# # #" ???????? | | # #??# # #T """ """?????????? | | #!! #######"# #" """ """ ????????? | | ####! #" """ """ #?????? | | # ! #" #?????? | | *+ # """ """ #?????? | | [#[ + """ """?????????? | | # # """ """?????????? | | #####+################ # ?????????? | | #????????????????????# ##########?????????? | | #????????????????????# ?????????????????? | +----------------------------------------------------+ Best States ------------- Heat Dissipation 59 Energy Generation 19 Energy Capacity 290 Matter Stores 405 Matter Capacity 500 Sight Range 16 Terrain Scan Density 1210 Cloak Strength 2 Evasion (%) 64 Targeting Accuracy 10 Core Analysis 6 Recoil Reduction 2 Defensive Hacking 10 Item Schematics ----------------- None Robot Schematics ------------------ R-06 Scavenger | -9/Recycling | Hacked Fabricated ------------ Nothing Repaired ---------- Sml. Storage Unit | 18% | -9/Storage Alien Tech Used ----------------- None Achievements -------------- None Challenges ------------ None Game ------ Seed SuperdensePhaseFirepult Manual? 0 Play Time 00:37:14 Cumulative 163.8 hours Start 2025.09.27 @ 19:37:37 End 2025.09.28 @ 10:58:09 Sessions 1 Manual Loads 0 Difficulty Rogue Special Mode None Game No. 524 Rogue 523 Adventurer 1 Explorer 0 Win Type - Total 0 Types 0/0/0/0/0/0/0/0/0/0 Lore% 58 Gallery% 55 Achievement% 43 Wizard Run 0 Options --------- Layout 1 ASCII 0 Keyboard 0 Movement Mouse Keybinds 0 Fullscreen 2 Font 24/Smallcaps Map View 50x35 Zoom Use 0% Tactical HUD 0 Map Filters NONE Filters NONE Steam 1 RUN: 6a58119f-591e-426b-8953-c234bd639cc9